fUST/lending_fUST_20260403
["ID","MTS","AMOUNT","RATE_DAILY","PERIOD"]
[419325323,1775172632610,-168.155937,0.00020793,2]
[419325324,1775172632619,-342.69713499,0.00021,2]
[419325325,1775172632634,-55.30286501,0.00021,2]
[419325326,1775172632643,-184.0,0.00021398,2]
[419325327,1775172632652,-733.03710261,0.000217,20]
[419325333,1775172638804,-571.02922836,0.000217,20]
[419325334,1775172638814,-300.0,0.00021741,2]
[419325335,1775172638823,-573.11479749,0.00021798,2]
[419325336,1775172638832,-1862.00597415,0.00021799,2]
[419325337,1775172638911,-1408.17959229,0.00021799,2]
[419325339,1775172638924,-1324.01687754,0.00021799,2]
[419325340,1775172638933,-354.08806961,0.00021799,2]
[419325341,1775172638942,-1542996.85551387,0.000218,2]
[419325389,1775172641498,-365.25853514,0.000218,2]
[419325390,1775172641510,-595.00000075,0.000218,2]
[419325398,1775172644022,-274.6353357,0.000218,2]
[419325399,1775172644034,-701.62763894,0.000218,2]
[419325400,1775172644045,-318.84759742,0.000218,2]
[419325403,1775172644183,-493.6422938,0.000218,2]
[419325404,1775172644194,-51089.15651307,0.000218,2]
[419325405,1775172644206,-103164.97657131,0.000218,2]
[419325406,1775172644215,-200.0,0.00021898,2]
[419325407,1775172644225,-42042.46990274,0.00022,2]
[419325408,1775172644234,-154.0,0.00022,2]
[419325409,1775172644243,-200.0,0.000229,2]
[419325410,1775172644253,-154.0,0.00023,2]
[419325411,1775172644263,-152.0,0.00023412,2]
[419325412,1775172644272,-6267.95097837,0.00023661,2]
[419325413,1775172644283,-6279.21407964,0.00023661,2]
[419325414,1775172644296,-2833.20854199,0.00023661,2]
[419325415,1775172644306,-270.83333333,0.00023943,2]
[419325416,1775172644315,-154.0,0.00024,2]
[419325417,1775172644324,-578.19,0.00024043,2]
[419325418,1775172644333,-578.19,0.00024043,2]
[419325419,1775172644343,-578.19,0.00024043,2]
[419325420,1775172644352,-578.19,0.00024043,2]
[419325421,1775172644362,-578.19,0.00024043,2]
[419325422,1775172644371,-578.19,0.00024043,2]
[419325423,1775172644380,-987.59,0.00024043,2]
[419325424,1775172644391,-257.177545,0.00024143,2]
[419325425,1775172644401,-151.0,0.00024248,2]
[419325426,1775172644410,-324.7964573,0.00024248,2]
[419325427,1775172644420,-154.824,0.000243,6]
[419325428,1775172644430,-184.0,0.00024398,2]
[419325429,1775172644440,-928.0,0.00024658,5]
[419325430,1775172644451,-491.06150412,0.000248,2]
[419325431,1775172644462,-928.0,0.00024932,5]
[419325432,1775172644472,-154.0,0.00025,2]
[419325433,1775172644482,-928.0,0.00025205,5]
[419325434,1775172644491,-27798.87625225,0.00025444,2]
[419325435,1775172644523,-42685.14899584,0.00025444,2]
[419325436,1775172644534,-3795.1,0.00025444,2]
[419325437,1775172644545,-1283.82286199,0.00025444,2]
[419325438,1775172644556,-1316.27915126,0.00025444,2]
[419325439,1775172644567,-361.0,0.00025444,2]
[419325463,1775172646925,-500.0,0.00021799,2]
[419325464,1775172646935,-500.0,0.00021799,2]
[419325465,1775172646945,-500.0,0.00021799,2]
[419325466,1775172646954,-487.17510154,0.00021799,2]
[419325467,1775172646964,-500.0,0.00021799,2]
[419325468,1775172646973,-500.0,0.00021799,2]
[419325469,1775172646982,-136.06654916,0.00021799,2]
[419325470,1775172646996,-363.93345084,0.00021799,2]
[419325471,1775172647005,-500.0,0.00021799,2]
[419325472,1775172647014,-10571.20057835,0.00024043,2]
[419325473,1775172647027,-7918.84999999,0.00024043,2]
[419325474,1775172647139,-4711.91870618,0.00024043,2]
[419325486,1775173831753,-2581.36439249,0.00012004,2]
[419325487,1775173831806,-356.71915,0.00012004,2]
[419325488,1775173831819,-2061.91645751,0.00012004,2]
[419325489,1775173831829,-300.0,0.00012125,2]
[419325490,1775173831838,-591.0,0.00012125,2]
[419325491,1775173831848,-649.97487845,0.00012247,2]
[419325492,1775173831860,-550.02512155,0.00012247,2]
[419325494,1775173831869,-771.14841592,0.00012247,2]
[419325495,1775173831880,-428.85158408,0.00012247,2]
[419325497,1775173831890,-496.48473088,0.00012248,2]
[419325636,1775173837977,-965.82415812,0.00012248,2]
[419325638,1775173837987,-300.0,0.00012926,2]
[419325641,1775173837997,-300.0,0.00012926,2]
[419325643,1775173838006,-300.0,0.00012926,2]
[419325645,1775173838015,-300.0,0.00012926,2]
[419325647,1775173838024,-568.88203279,0.00012927,2]
[419325649,1775173838033,-50000.0,0.00012927,2]
[419325651,1775173838042,-300.0,0.00013338,2]
[419325652,1775173838051,-1680.0,0.00013441,2]
[419325655,1775173838061,-1680.0,0.00013472,2]
[419325657,1775173838070,-1000.0,0.00013699,2]
[419325659,1775173838080,-420.0,0.00014177,2]
[419325661,1775173838090,-420.0,0.00014177,2]
[419325663,1775173838098,-420.0,0.00014177,2]
[419325665,1775173838108,-420.0,0.00014177,2]
[419325667,1775173838117,-2351.0,0.00014752,2]
[419325669,1775173838127,-2351.0,0.00014819,2]
[419325671,1775173838136,-587.0,0.00015548,2]
[419325673,1775173838145,-587.0,0.00015548,2]
[419325675,1775173838154,-587.0,0.00015548,2]
[419325677,1775173838164,-587.0,0.00015548,2]
[419325679,1775173838173,-1195.0,0.0001619,2]
[419325681,1775173838182,-2880.0,0.00016301,2]
[419325683,1775173838192,-700.094427,0.00016892,2]
[419325685,1775173838201,-727.0,0.00017053,2]
[419325687,1775173838210,-823.0,0.00017053,2]
[419325689,1775173838219,-723.0,0.00017053,2]
[419325691,1775173838228,-720.0,0.00017053,2]
[419325692,1775173838237,-151.90494792,0.0002,2]
[419325694,1775173838247,-1112.5,0.000209,2]
[419325696,1775173838256,-408.90624646,0.000218,2]
[419325699,1775173838269,-1112.5,0.000219,2]
[419325701,1775173838281,-158.3599744,0.00022,2]
[419325704,1775173838294,-184.0,0.00022282,2]
[419325706,1775173838306,-1112.5,0.000229,2]
[419325708,1775173838318,-408.90624642,0.00022957,2]
[419325710,1775173838329,-270.83333333,0.00023,2]
[419325713,1775173838340,-2141.2861024,0.00023009,2]
[419325715,1775173838352,-1112.5,0.000239,2]
[419325717,1775173838363,-168.0,0.0002396,2]
[419325720,1775173838374,-1282.54186456,0.00023971,2]
[419325722,1775173838387,-168.0,0.00023988,2]
[419325724,1775173838399,-168.0,0.00024048,2]
[419325726,1775173838411,-298.76265977,0.0002407,2]
[419325729,1775173838422,-500.0,0.0002407,2]
[419325731,1775173838433,-500.0,0.0002407,2]
[419325733,1775173838446,-500.0,0.0002407,2]
[419325736,1775173838457,-500.0,0.0002407,2]
[419325738,1775173838470,-500.0,0.0002407,2]
[419325740,1775173838481,-500.0,0.0002407,2]
[419325743,1775173838493,-500.0,0.0002407,2]
[419325745,1775173838504,-500.0,0.0002407,2]
[419325747,1775173838515,-500.0,0.0002407,2]
[419325749,1775173838527,-500.0,0.0002407,2]
[419325752,1775173838537,-501.50326989,0.0002407,2]
[419325754,1775173838547,-500.0,0.0002407,2]
[419325756,1775173838557,-500.0,0.0002407,2]
[419325758,1775173838569,-500.0,0.0002407,2]
[419325760,1775173838581,-500.0,0.0002407,2]
[419325763,1775173838593,-500.0,0.0002407,2]
[419325765,1775173838606,-500.0,0.0002407,2]
[419325768,1775173838618,-500.0,0.0002407,2]
[419325770,1775173838630,-500.0,0.0002407,2]
[419325772,1775173838641,-500.0,0.0002407,2]
[419325775,1775173838654,-500.0,0.0002407,2]
[419325777,1775173838666,-500.0,0.0002407,2]
[419325779,1775173838679,-939.13985952,0.00024071,2]
[419325782,1775173838696,-820.992352,0.00024071,2]
[419325785,1775173838717,-414.06079803,0.00024071,2]
[419325788,1775173838728,-53271.71144736,0.00024071,2]
[419325817,1775173840600,-5298.038306,0.00024071,2]
[419325818,1775173840655,-530.49760276,0.00024071,2]
[419325819,1775173840671,-603.519,0.00024071,2]
[419325825,1775173843337,-2790.29908178,0.00024071,2]
[419325826,1775173843353,-660.112334,0.00024071,2]
[419325827,1775173843366,-1233.93026423,0.00024071,2]
[419325870,1775173846283,-5000.0,0.0002383,2]
[419325871,1775173846295,-2218.44,0.00024071,2]
[419325872,1775173846337,-63474.66438068,0.00024071,2]
[419325873,1775173846348,-200.0,0.00024071,2]
[419325874,1775173846358,-800.0,0.00024071,2]
[419325875,1775173846369,-500.0,0.00024073,2]
[419325876,1775173846379,-408.90624642,0.00024114,2]
[419325877,1775173846390,-2579.17784983,0.00024171,2]
[419325878,1775173846401,-168.0,0.00024235,2]
[419325879,1775173846412,-154.824,0.0002439,6]
[419325880,1775173846422,-168.0,0.00024508,2]
[419325881,1775173846433,-168.0,0.00024533,2]
[419325882,1775173846444,-1000.0,0.00024621,2]
[419325883,1775173846454,-168.0,0.00024621,2]
[419325884,1775173846465,-928.0,0.00024658,5]
[419325885,1775173846475,-168.0,0.00024774,2]
[419325886,1775173846487,-300.0,0.00024846,2]
[419325887,1775173846499,-1112.5,0.000249,2]
[419325888,1775173846509,-928.0,0.00024932,5]
[419325889,1775173846639,-168.0,0.00024968,2]
[419325890,1775173846655,-455.2608298,0.00024979,2]
[419325891,1775173846665,-168.0,0.00025046,2]
[419325892,1775173846674,-1500.0,0.00025168,2]
[419325893,1775173846683,-928.0,0.00025205,5]
[419325894,1775173846692,-168.0,0.00025256,2]
[419325895,1775173846701,-408.90624642,0.00025271,2]
[419325896,1775173846711,-184.0,0.00025282,2]
[419325897,1775173846721,-700.094427,0.00025338,2]
[419325898,1775173846730,-4320.98279697,0.00025344,2]
[419325899,1775173846740,-160.0,0.00025382,14]
[419325900,1775173846749,-876.667423,0.00025382,14]
[419325901,1775173846759,-1593.334846,0.00025382,14]
[419325902,1775173846768,-160.0,0.00025382,14]
[419325903,1775173846778,-616.757526,0.00025382,14]
[419325904,1775173846787,-1073.515052,0.00025382,14]
[419325905,1775173846796,-160.0,0.00025382,14]
[419325906,1775173846806,-1016.839542,0.00025382,14]
[419325907,1775173846816,-1873.679084,0.00025382,14]
[419325908,1775173846826,-222.966533,0.00025382,14]
[419325909,1775173846835,-186.26485353,0.00025443,2]
[419325910,1775173846845,-4279.60444284,0.00025444,2]
[419325924,1775174461735,-5000.0,0.00011805,2]
[419325925,1775174461760,-586.0,0.00011805,2]
[419325926,1775174461777,-5000.0,0.00011924,2]
[419325927,1775174461789,-586.0,0.00012044,2]
[419325928,1775174461799,-4414.0,0.00012044,2]
[419325929,1775174461808,-33.20861684,0.00012166,2]
[419325940,1775175006294,-300.0,0.0001078,2]
[419325941,1775175006331,-200.0,0.0001078,2]
[419325942,1775175008957,-100.0,0.0001078,2]
[419325943,1775175008993,-300.0,0.0001078,2]
[419325944,1775175009029,-100.0,0.0001078,2]
[419325949,1775175011798,-200.0,0.0001078,2]
[419325950,1775175011890,-300.0,0.0001078,2]
[419325951,1775175014368,-500.0,0.0001078,2]
[419325952,1775175019013,-400.0,0.0001078,2]
[419325953,1775175019042,-100.0,0.00010781,2]
[419325987,1775175032101,-1486.0635316,0.00010673,2]
[419325990,1775175032113,-3513.9364684,0.00010673,2]
[419325992,1775175032124,-4900.0,0.00010781,2]
[419325994,1775175032134,-571.0,0.00010781,2]
[419325996,1775175032143,-300.0,0.00010889,2]
[419325997,1775175032153,-3377.7082186,0.0001089,2]
[419326002,1775175032184,-1622.2917814,0.0001089,2]
[419326004,1775175032193,-420.0,0.00011849,2]
[419326005,1775175032203,-300.0,0.00011849,2]
[419326007,1775175032213,-409.09380977,0.00011858,2]
[419326033,1775175032454,-670.94,0.00011858,2]
[419326076,1775175038280,-119.96619023,0.00011858,2]
[419326078,1775175038290,-420.0,0.00011967,2]
[419326080,1775175038300,-772.03380977,0.00011967,2]
[419326083,1775175038312,-5621.48489813,0.00011967,2]
[419326084,1775175038321,-300.0,0.00012512,25]
[419326086,1775175038331,-282.0,0.00013023,2]
[419326088,1775175038340,-587.0,0.00013152,2]
[419326090,1775175038350,-1000.0,0.00013699,2]
[419326092,1775175038360,-823.0,0.00014454,2]
[419326094,1775175038369,-1152.0,0.00015885,2]
[419326096,1775175038379,-3071.9246576,0.0001729,2]
[419326098,1775175038389,-797.0,0.00017458,2]
[419326100,1775175038398,-204.45312321,0.00018027,2]
[419326102,1775175038408,-177.287835,0.00018127,2]
[419326104,1775175038417,-500.0,0.00018469,2]
[419326106,1775175038427,-209.13386184,0.00018469,2]
[419326108,1775175038436,-500.0,0.00018469,2]
[419326110,1775175038446,-500.0,0.00018469,2]
[419326112,1775175038456,-342.38612646,0.00018469,2]
[419326114,1775175038465,-500.0,0.00018469,2]
[419326116,1775175038475,-500.0,0.00018469,2]
[419326118,1775175038484,-500.0,0.00018469,2]
[419326120,1775175038494,-500.0,0.00018469,2]
[419326122,1775175038503,-500.0,0.00018469,2]
[419326124,1775175038513,-500.0,0.00018469,2]
[419326126,1775175038522,-500.0,0.00018469,2]
[419326128,1775175038533,-500.0,0.00018469,2]
[419326130,1775175038542,-500.0,0.00018469,2]
[419326132,1775175038551,-500.0,0.00018469,2]
[419326134,1775175038561,-16777.93129276,0.0001847,2]
[419326136,1775175038572,-258940.78238993,0.0001847,2]
[419326138,1775175038581,-500.0,0.00018473,2]
[419326140,1775175038591,-500.0,0.00018473,2]
[419326142,1775175038600,-500.0,0.00018473,2]
[419326143,1775175038609,-504.79620014,0.00018473,2]
[419326145,1775175038618,-500.0,0.00018473,2]
[419326147,1775175038627,-500.0,0.00018473,2]
[419326149,1775175038636,-500.91790075,0.00018473,2]
[419326151,1775175038646,-500.0,0.00018473,2]
[419326153,1775175038655,-500.0,0.00018473,2]
[419326155,1775175038665,-500.29013181,0.00018473,2]
[419326157,1775175038674,-500.0,0.00019021,2]
[419326159,1775175038684,-500.0,0.00019021,2]
[419326161,1775175038693,-500.0,0.00019021,2]
[419326163,1775175038703,-249.87974594,0.00019021,2]
[419326165,1775175038712,-507.05983652,0.00019021,2]
[419326167,1775175038722,-500.0,0.00019021,2]
[419326169,1775175038732,-502.04923911,0.00019021,2]
[419326171,1775175038741,-3156.88541511,0.00019205,5]
[419326173,1775175038752,-204.45312321,0.00019723,2]
[419326175,1775175038761,-214.07496632,0.0002,2]
[419326177,1775175038770,-204.45312321,0.00021419,2]
[419326179,1775175038780,-440.0,0.00021819,2]
[419326181,1775175038789,-184.0,0.00021819,2]
[419326183,1775175038798,-152.0,0.00021949,2]
[419326185,1775175038808,-205.62,0.00021968,2]
[419326187,1775175038817,-417091.63673023,0.00022,2]
[419326201,1775175041057,-4069.70325648,0.00022,2]
[419326202,1775175041069,-679.74568273,0.00022,2]
[419326203,1775175041080,-877.37578641,0.00022,2]
[419326427,1775175046316,-1450.26218472,0.0002178,2]
[419326429,1775175046357,-1257.87188007,0.0002178,2]
[419326430,1775175046561,-346.38830132,0.0002178,2]
[419326431,1775175046619,-1945.47763389,0.0002178,2]
[419326432,1775175046628,-24914.93843192,0.00022,2]
[419326433,1775175046639,-12518.90595369,0.00022,2]
[419326447,1775175050006,-2278.6739362,0.00022,2]
[419326448,1775175050018,-30838.5725592,0.00022,2]
[419326449,1775175050030,-28366.10645598,0.00022,2]
[419326450,1775175050060,-833.04429376,0.00022,2]
[419326451,1775175050072,-1041.66666667,0.00022,2]
[419326452,1775175050083,-1801.41093038,0.00022,2]
[419326453,1775175050094,-3290.82508246,0.00022,2]
[419326454,1775175050105,-1050.59287838,0.00022,2]
[419326455,1775175050116,-4740.16662601,0.00022,2]
[419326479,1775176232315,-5000.0,0.0001178,2]
[419326480,1775176232324,-282.252,0.0001178,2]
[419326498,1775176238515,-303.748,0.0001178,2]
[419326499,1775176238527,-5000.0,0.00011899,2]
[419326500,1775176238539,-1200.0,0.00012018,2]
[419326501,1775176238551,-5000.0,0.00012019,2]
[419326502,1775176238563,-300.0,0.00012139,2]
[419326503,1775176238575,-300.0,0.00012139,2]
[419326504,1775176238587,-300.0,0.00012139,2]
[419326505,1775176238599,-300.0,0.00012139,2]
[419326506,1775176238611,-1680.0,0.0001322,2]
[419326507,1775176238623,-420.0,0.00013324,2]
[419326508,1775176238634,-420.0,0.00013324,2]
[419326509,1775176238645,-420.0,0.00013324,2]
[419326510,1775176238656,-1000.0,0.00013699,2]
[419326511,1775176238668,-2351.0,0.00014542,2]
[419326512,1775176238679,-480.0,0.00014625,2]
[419326513,1775176238691,-587.0,0.00014625,2]
[419326514,1775176238702,-587.0,0.00014625,2]
[419326515,1775176238713,-164.858205,0.00017538,2]
[419326517,1775176238725,-214.81,0.00018,2]
[419326519,1775176238736,-170.3776027,0.0001836,2]
[419326521,1775176238746,-1187.3042087,0.0001836,2]
[419326523,1775176238757,-335.05411608,0.0001846,2]
[419326525,1775176238768,-245.19293226,0.0001846,2]
[419326527,1775176238780,-500.0,0.0001846,2]
[419326530,1775176238792,-500.0,0.0001846,2]
[419326531,1775176238803,-500.0,0.0001846,2]
[419326532,1775176238815,-500.0,0.0001846,2]
[419326533,1775176238826,-500.0,0.0001846,2]
[419326534,1775176238837,-500.0,0.0001846,2]
[419326535,1775176238847,-500.0,0.0001846,2]
[419326536,1775176238857,-500.0,0.0001846,2]
[419326538,1775176238866,-500.0,0.0001846,2]
[419326541,1775176239009,-500.0,0.0001846,2]
[419326542,1775176239027,-500.0,0.0001846,2]
[419326543,1775176239038,-500.0,0.0001846,2]
[419326544,1775176239048,-605.19932126,0.0001846,2]
[419326545,1775176239057,-500.0,0.0001846,2]
[419326546,1775176239066,-500.0,0.0001846,2]
[419326547,1775176239075,-500.0,0.0001846,2]
[419326548,1775176239085,-500.0,0.0001846,2]
[419326549,1775176239095,-417.37717431,0.0001846,2]
[419326550,1775176239104,-500.0,0.0001846,2]
[419326551,1775176239114,-500.0,0.0001846,2]
[419326552,1775176239123,-500.0,0.0001846,2]
[419326553,1775176239133,-500.0,0.0001846,2]
[419326554,1775176239142,-500.0,0.0001846,2]
[419326555,1775176239151,-500.0,0.0001846,2]
[419326556,1775176239161,-500.0,0.0001846,2]
[419326557,1775176239170,-500.0,0.0001846,2]
[419326558,1775176239180,-500.0,0.0001846,2]
[419326559,1775176239189,-500.0,0.0001846,2]
[419326560,1775176239199,-500.0,0.0001846,2]
[419326561,1775176239208,-482.40882902,0.0001846,2]
[419326562,1775176239218,-500.0,0.0001846,2]
[419326563,1775176239227,-500.0,0.0001846,2]
[419326564,1775176239236,-500.0,0.0001846,2]
[419326565,1775176239246,-500.0,0.0001846,2]
[419326566,1775176239255,-500.0,0.0001846,2]
[419326567,1775176239265,-500.0,0.0001846,2]
[419326568,1775176239285,-500.0,0.0001846,2]
[419326569,1775176239296,-500.0,0.0001846,2]
[419326570,1775176239306,-500.0,0.0001846,2]
[419326571,1775176239316,-500.0,0.0001846,2]
[419326572,1775176239326,-500.0,0.0001846,2]
[419326573,1775176239336,-500.0,0.0001846,2]
[419326574,1775176239347,-500.0,0.0001846,2]
[419326575,1775176239357,-500.0,0.0001846,2]
[419326576,1775176239367,-500.0,0.0001846,2]
[419326577,1775176239378,-500.0,0.0001846,2]
[419326578,1775176239390,-500.0,0.0001846,2]
[419326579,1775176239400,-500.0,0.0001846,2]
[419326580,1775176239411,-500.0,0.0001846,2]
[419326581,1775176239421,-500.0,0.0001846,2]
[419326582,1775176239430,-500.0,0.0001846,2]
[419326583,1775176239440,-500.0,0.0001846,2]
[419326584,1775176239450,-500.0,0.0001846,2]
[419326585,1775176239460,-500.0,0.0001846,2]
[419326586,1775176239471,-500.0,0.0001846,2]
[419326587,1775176239481,-500.0,0.0001846,2]
[419326588,1775176239492,-500.0,0.0001846,2]
[419326589,1775176239502,-500.0,0.0001846,2]
[419326590,1775176239512,-500.0,0.0001846,2]
[419326591,1775176239522,-500.0,0.0001846,2]
[419326592,1775176239532,-500.0,0.0001846,2]
[419326593,1775176239542,-500.0,0.0001846,2]
[419326594,1775176239553,-500.0,0.0001846,2]
[419326595,1775176239563,-500.0,0.0001846,2]
[419326596,1775176239574,-500.0,0.0001846,2]
[419326597,1775176239584,-500.0,0.0001846,2]
[419326598,1775176239594,-500.0,0.0001846,2]
[419326599,1775176239604,-500.0,0.0001846,2]
[419326600,1775176239614,-500.0,0.0001846,2]
[419326601,1775176239625,-500.0,0.0001846,2]
[419326602,1775176239635,-500.0,0.0001846,2]
[419326603,1775176239646,-500.0,0.0001846,2]
[419326604,1775176239656,-500.0,0.0001846,2]
[419326605,1775176239666,-550.00000001,0.0001846,2]
[419326606,1775176239677,-500.0,0.0001846,2]
[419326607,1775176239687,-500.0,0.0001846,2]
[419326608,1775176239697,-500.0,0.0001846,2]
[419326609,1775176239708,-500.0,0.0001846,2]
[419326610,1775176239718,-500.0,0.0001846,2]
[419326611,1775176239728,-239.16002437,0.0001846,2]
[419326612,1775176239745,-260.83997563,0.0001846,2]
[419326613,1775176239755,-260.01940565,0.0001846,2]
[419326614,1775176239766,-239.98059435,0.0001846,2]
[419326615,1775176239776,-22.15795052,0.0001846,2]
[419326618,1775176240953,-477.84204948,0.0001846,2]
[419326619,1775176240964,-500.0,0.0001846,2]
[419326620,1775176240974,-500.0,0.0001846,2]
[419326621,1775176240984,-394.55860849,0.0001846,2]
[419326622,1775176240997,-105.44139151,0.0001846,2]
[419326623,1775176241007,-500.0,0.0001846,2]
[419326624,1775176241017,-500.0,0.0001846,2]
[419326625,1775176241026,-500.0,0.0001846,2]
[419326626,1775176241036,-461.01101908,0.0001846,2]
[419326627,1775176241045,-500.0,0.0001846,2]
[419326628,1775176241054,-500.0,0.0001846,2]
[419326629,1775176241064,-500.0,0.0001846,2]
[419326630,1775176241073,-500.0,0.0001846,2]
[419326631,1775176241083,-8.15725784,0.0001846,2]
[419326632,1775176241118,-491.84274216,0.0001846,2]
[419326633,1775176241127,-458.47407242,0.0001846,2]
[419326634,1775176241137,-500.0,0.0001846,2]
[419326635,1775176241147,-500.0,0.0001846,2]
[419326636,1775176241156,-378.87736522,0.0001846,2]
[419326642,1775176243712,-121.12263478,0.0001846,2]
[419326643,1775176243724,-500.0,0.0001846,2]
[419326644,1775176243733,-108.55507141,0.0001846,2]
[419326645,1775176243745,-391.44492859,0.0001846,2]
[419326646,1775176243755,-500.0,0.0001846,2]
[419326647,1775176243766,-500.0,0.0001846,2]
[419326648,1775176243777,-500.0,0.0001846,2]
[419326649,1775176243787,-500.0,0.0001846,2]
[419326650,1775176243797,-500.0,0.0001846,2]
[419326651,1775176243807,-500.0,0.0001846,2]
[419326652,1775176243817,-500.0,0.0001846,2]
[419326653,1775176243827,-500.0,0.0001846,2]
[419326654,1775176243837,-500.0,0.0001846,2]
[419326655,1775176243846,-500.0,0.0001846,2]
[419326656,1775176243856,-500.0,0.0001846,2]
[419326657,1775176243866,-500.0,0.0001846,2]
[419326659,1775176243876,-500.0,0.0001846,2]
[419326660,1775176243886,-500.0,0.0001846,2]
[419326662,1775176243896,-500.0,0.0001846,2]
[419326664,1775176243906,-62.07251252,0.0001846,2]
[419326674,1775176246647,-437.92748748,0.0001846,2]
[419326675,1775176246658,-500.0,0.0001846,2]
[419326676,1775176246668,-500.0,0.0001846,2]
[419326677,1775176246679,-495.83917823,0.0001846,2]
[419326678,1775176246703,-4.16082177,0.0001846,2]
[419326679,1775176246713,-500.0,0.0001846,2]
[419326680,1775176246723,-500.0,0.0001846,2]
[419326681,1775176246733,-500.0,0.0001846,2]
[419326682,1775176246743,-500.0,0.0001846,2]
[419326683,1775176246754,-500.0,0.0001846,2]
[419326684,1775176246765,-513.68202611,0.0001846,2]
[419326685,1775176246775,-226.23365918,0.0001846,2]
[419326686,1775176246791,-273.76634082,0.0001846,2]
[419326687,1775176246801,-92.23365918,0.0001846,2]
[419326688,1775176318305,-1450.26218472,0.00018092,2]
[419326693,1775176842520,500.0,9.002e-05,2]
[419326694,1775176842548,500.0,9.002e-05,2]
[419326695,1775176842575,500.0,9.002e-05,2]
[419326696,1775176842602,353.06,9.002e-05,2]
[419326706,1775177432481,-2462.0817623,0.00012288,2]
[419326707,1775177432494,-599.35241797,0.00012288,2]
[419326708,1775177432506,-485.20507981,0.00012288,2]
[419326709,1775177432520,-1453.36073992,0.00012288,2]
[419326710,1775177432535,-1200.0,0.00012411,2]
[419326711,1775177432546,-5000.0,0.00012412,2]
[419326712,1775177432557,-1106.3935368,0.00012537,2]
[419326714,1775177432569,-597.0,0.00012537,2]
[419326715,1775177432582,-300.0,0.00012637,2]
[419326716,1775177432595,-300.0,0.00012637,2]
[419326717,1775177432607,-300.0,0.00012637,2]
[419326718,1775177432619,-1000.0,0.00013699,2]
[419326719,1775177432630,-250.0,0.00016566,2]
[419326720,1775177432641,-177.141938,0.00017726,2]
[419326721,1775177432651,-4252.06792702,0.00017726,2]
[419326722,1775177432662,-1218.0817623,0.00019032,2]
[419326723,1775177432675,-567.1972151,0.00019424,2]
[419326724,1775177432686,-334.94145962,0.00019606,2]
[419326725,1775177432698,-262.24999828,0.00019606,2]
[419326726,1775177432709,-1005.0,0.0002,6]
[419326727,1775177432720,-1124.1,0.000209,2]
[419326728,1775177432732,-170.37760267,0.00021699,2]
[419326729,1775177432744,-191.03826583,0.00021707,2]
[419326730,1775177432755,-949.84336696,0.00021713,2]
[419326731,1775177432766,-949.84336692,0.0002176,2]
[419326732,1775177432778,-500.64316157,0.00021773,2]
[419326733,1775177432789,-500.0,0.00021773,2]
[419326734,1775177432800,-500.70231723,0.00021773,2]
[419326735,1775177432812,-500.0,0.00021773,2]
[419326736,1775177432824,-500.0,0.00021773,2]
[419326737,1775177432835,-500.0,0.00021799,2]
[419326738,1775177432846,-500.0,0.00021799,2]
[419326739,1775177432860,-500.0,0.00021799,2]
[419326740,1775177432872,-500.0,0.00021799,2]
[419326741,1775177432884,-500.0,0.00021799,2]
[419326742,1775177432895,-500.0,0.00021799,2]
[419326743,1775177432907,-364.97862843,0.00021799,2]